fUSD/lending_fUSD_20250512
["ID","MTS","AMOUNT","RATE_DAILY","PERIOD"]
[360783910,1747017920738,-44.92197314,0.00010659,2]
[360783911,1747017920762,-250.0,0.00011725,2]
[360783912,1747017920785,-48.79844978,0.00012456,2]
[360783913,1747017935761,-152.0,0.00012456,2]
[360783914,1747017951859,-264.71967137,0.00012456,2]
[360783915,1747017981403,-220.21738886,0.00012487,2]
[360783916,1747017995707,-170.7393119,0.00012418,2]
[360783917,1747017995730,-196.29701673,0.00012424,2]
[360783918,1747018040673,-161.70917052,0.00012424,2]
[360783921,1747018055773,-261.62682017,0.00012424,2]
[360783923,1747018070712,-166.797283,0.00012424,2]
[360783924,1747018070736,-29.78261114,0.00012487,2]
[360783925,1747018070760,-37.51370861,0.00012516,2]
[360783926,1747018087492,-150.0,0.00012516,2]
[360783927,1747018087516,-113.34965324,0.00012516,2]
[360783928,1747018101630,-167.36887079,0.00012516,2]
[360783929,1747018115803,-19.28147597,0.00012516,2]
[360783930,1747018115829,-180.71852403,0.00012516,2]
[360783931,1747018116928,-180.71852403,0.00012516,2]
[360783932,1747018131808,-138.56295194,0.00012516,2]
[360783933,1747018131839,-38.06704806,0.00012516,2]
[360783935,1747018137789,-461.93295194,0.00012516,2]
[360783936,1747018137819,-500.0,0.00012516,2]
[360783937,1747018137848,-500.0,0.00012516,2]
[360783938,1747018137886,-500.0,0.00012516,2]
[360783939,1747018137914,-500.0,0.00012516,2]
[360783940,1747018137941,-500.0,0.00012516,2]
[360783941,1747018137985,-500.0,0.00012516,2]
[360783942,1747018138048,-500.0,0.00012516,2]
[360783943,1747018138097,-500.0,0.00012516,2]
[360783944,1747018138154,-500.0,0.00012516,2]
[360783945,1747018138205,-500.0,0.00012516,2]
[360783946,1747018138249,-500.0,0.00012516,2]
[360783947,1747018138300,-500.0,0.00012516,2]
[360783948,1747018138343,-500.0,0.00012516,2]
[360783949,1747018138383,-500.0,0.00012516,2]
[360783950,1747018138427,-500.0,0.00012516,2]
[360783951,1747018138474,-500.0,0.00012516,2]
[360783952,1747018138523,-500.0,0.00012516,2]
[360783953,1747018138564,-500.0,0.00012516,2]
[360783954,1747018138610,-500.0,0.00012516,2]
[360783955,1747018138655,-500.0,0.00012516,2]
[360783956,1747018138699,-500.0,0.00012516,2]
[360783957,1747018138745,-500.0,0.00012516,2]
[360783958,1747018138790,-500.0,0.00012516,2]
[360783959,1747018138835,-500.0,0.00012516,2]
[360783960,1747018138877,-500.0,0.00012516,2]
[360783961,1747018138920,-500.0,0.00012516,2]
[360783962,1747018138963,-500.0,0.00012516,2]
[360783963,1747018139007,-500.0,0.00012516,2]
[360783964,1747018139050,-287.524,0.00012516,2]
[360783965,1747018139093,-500.0,0.00012516,2]
[360783966,1747018139138,-500.0,0.00012516,2]
[360783967,1747018139181,-500.0,0.00012516,2]
[360783968,1747018139225,-500.0,0.00012516,2]
[360783969,1747018139269,-500.0,0.00012516,2]
[360783970,1747018139311,-500.0,0.00012516,2]
[360783971,1747018139356,-500.0,0.00012516,2]
[360783972,1747018139402,-500.0,0.00012516,2]
[360783973,1747018139448,-500.0,0.00012516,2]
[360783974,1747018139494,-500.0,0.00012516,2]
[360783975,1747018139540,-500.0,0.00012516,2]
[360783976,1747018139586,-500.0,0.00012516,2]
[360783977,1747018139630,-500.0,0.00012516,2]
[360783978,1747018139675,-500.0,0.00012516,2]
[360783979,1747018139719,-500.0,0.00012516,2]
[360783980,1747018139762,-500.0,0.00012516,2]
[360783981,1747018139805,-500.0,0.00012516,2]
[360783982,1747018139850,-500.0,0.00012516,2]
[360783983,1747018139892,-500.0,0.00012516,2]
[360783984,1747018139935,-500.0,0.00012516,2]
[360783985,1747018139979,-500.0,0.00012516,2]
[360783986,1747018140022,-500.0,0.00012516,2]
[360783987,1747018140053,-500.0,0.00012516,2]
[360783988,1747018140083,-500.0,0.00012516,2]
[360783989,1747018140110,-500.0,0.00012516,2]
[360783990,1747018140138,-291.9844654,0.00012516,2]
[360783991,1747018140166,-500.0,0.00012516,2]
[360783992,1747018140194,-500.0,0.00012516,2]
[360783993,1747018140757,-500.0,0.00012516,2]
[360783994,1747018140785,-500.0,0.00012516,2]
[360783995,1747018140812,-500.0,0.00012516,2]
[360783996,1747018140837,-500.0,0.00012516,2]
[360783997,1747018140863,-500.0,0.00012516,2]
[360783998,1747018140890,-500.0,0.00012516,2]
[360783999,1747018140914,-1200.0,0.00012518,2]
[360784000,1747018140937,-300.0,0.00012518,2]
[360784001,1747018140962,-250.0,0.00012523,2]
[360784002,1747018140986,-500.0,0.00012548,2]
[360784003,1747018141010,-159.38,0.00012558,2]
[360784004,1747018141033,-250.0,0.00012648,2]
[360784005,1747018141057,-303.63,0.0001267,2]
[360784006,1747018141080,-10807.59414894,0.0001274,2]
[360784007,1747018141103,-164.79430792,0.00012749,2]
[360784008,1747018145725,-215.03402899,0.0001275,2]
[360784009,1747018151391,500.0,0.00012516,2]
[360784010,1747018151476,500.0,0.00012516,2]
[360784011,1747018152082,-37845.96597101,0.0001275,2]
[360784012,1747018161910,-290.99112921,0.00012786,2]
[360784013,1747018175649,-310.07344519,0.00012786,2]
[360784019,1747018190679,-292.79435202,0.00012752,2]
[360784020,1747018205649,-208.43613779,0.00012752,2]
[360784021,1747018221234,-158.89295091,0.00012752,2]
[360784032,1747018232578,-372.22655928,0.00012752,2]
[360784033,1747018232590,-102.7054256,0.00012786,2]
[360784034,1747018232600,-275.91741304,0.00012839,2]
[360784035,1747018232611,-259.37340051,0.00012839,2]
[360784036,1747018232644,-8.61918645,0.00012839,2]
[360784037,1747018232654,-512.84,0.00012839,2]
[360784038,1747018232663,-290.83024007,0.00012865,2]
[360784039,1747018232673,-1000.0,0.00012866,2]
[360784040,1747018232683,-1874.62,0.00012871,2]
[360784041,1747018232692,-53.11057348,0.00012904,2]
[360784042,1747018232704,-113.84942652,0.00012904,2]
[360784043,1747018232714,-1142.6,0.00012923,2]
[360784044,1747018232723,-363.21,0.00012925,2]
[360784045,1747018232732,-1200.0,0.00012931,2]
[360784046,1747018232742,-500.0,0.00012932,2]
[360784047,1747018232751,-688.86880227,0.00013485,2]
[360784048,1747018232760,-300.0,0.00013604,2]
[360784049,1747018232770,-159.38,0.00013605,2]
[360784050,1747018232779,-255.0,0.00013605,2]
[360784051,1747018232789,-207.4,0.00013629,2]
[360784052,1747018232798,-668.65185757,0.00013629,2]
[360784053,1747018232808,-302.16,0.00013678,2]
[360784054,1747018232817,-151.0,0.00013699,2]
[360784055,1747018232826,-902.66,0.00013699,2]
[360784056,1747018232835,-299.99,0.00013699,2]
[360784057,1747018232844,-165.1,0.00013699,2]
[360784058,1747018232854,-1932.12991365,0.00013699,2]
[360784059,1747018235623,-319.95246688,0.00013699,2]
[360784167,1747018240841,-7747.90761947,0.00013699,2]
[360784168,1747018240850,-1038.02,0.00013699,2]
[360784169,1747018240860,-467.78,0.00013699,2]
[360784170,1747018240869,-344.63442624,0.00013699,2]
[360784171,1747018240878,-341.99050148,0.00013699,2]
[360784172,1747018240887,-457.17,0.000137,2]
[360784173,1747018240896,-250.0,0.00013701,2]
[360784174,1747018240905,-250.0,0.00013769,2]
[360784175,1747018240914,-279.58543851,0.00013795,2]
[360784176,1747018240923,-1000.0,0.00013796,2]
[360784177,1747018240933,-9661.3715,0.00013797,2]
[360784178,1747018240942,-415.6829,0.00013797,2]
[360784179,1747018240951,-803.51,0.000138,2]
[360784180,1747018240960,-279.5854385,0.00013806,2]
[360784181,1747018240970,-279.5854385,0.00013817,2]
[360784182,1747018240979,-279.5854385,0.00013828,2]
[360784183,1747018240988,-279.5854385,0.00013839,2]
[360784184,1747018240998,-279.5854385,0.00013851,2]
[360784185,1747018241007,-279.5854385,0.00013862,2]
[360784186,1747018241016,-160.38203077,0.00013873,2]
[360784187,1747018241026,-500.83772935,0.00013873,2]
[360784188,1747018241036,-500.9829885,0.00013873,2]
[360784189,1747018241046,-500.0,0.00013873,2]
[360784190,1747018241055,-186.87653073,0.00013873,2]
[360784191,1747018241066,-506.7729391,0.00013873,2]
[360784192,1747018241076,-500.0,0.00013873,2]
[360784193,1747018241088,-500.0,0.00013873,2]
[360784194,1747018241098,-504.09856498,0.00013873,2]
[360784195,1747018241108,-598.93399572,0.00013873,2]
[360784196,1747018241119,-500.0,0.00013873,2]
[360784197,1747018241129,-500.0,0.00013873,2]
[360784198,1747018241138,-95.42727332,0.00013873,2]
[360784199,1747018241629,-404.57272668,0.00013873,2]
[360784200,1747018241640,-49.30567332,0.00013873,2]
[360784201,1747018241651,-290.41346194,0.00013873,2]
[360784202,1747018241660,-500.0,0.00013873,2]
[360784203,1747018241670,-500.0,0.00013873,2]
[360784204,1747018241680,-500.0,0.00013873,2]
[360784205,1747018241689,-500.0,0.00013873,2]
[360784206,1747018241699,-279.5854385,0.00013873,2]
[360784207,1747018241710,-279.5854385,0.00013884,2]
[360784208,1747018241719,-162.8,0.00013885,2]
[360784209,1747018241728,-162.8,0.00013885,2]
[360784210,1747018241737,-162.8,0.00013885,2]
[360784211,1747018241746,-162.8,0.00013885,2]
[360784212,1747018241756,-162.8,0.00013885,2]
[360784213,1747018241765,-162.8,0.00013885,2]
[360784214,1747018241776,-162.8,0.00013885,2]
[360784215,1747018241786,-400.0,0.00013894,2]
[360784216,1747018241797,-400.0,0.00013894,2]
[360784217,1747018241807,-400.0,0.00013894,2]
[360784218,1747018241817,-189.37899796,0.00013894,2]
[360784219,1747018241826,-400.0,0.00013894,2]
[360784220,1747018241836,-400.40391696,0.00013894,2]
[360784221,1747018241847,-400.0,0.00013894,2]
[360784222,1747018241857,-401.29797962,0.00013894,2]
[360784223,1747018241866,-400.0,0.00013894,2]
[360784224,1747018241875,-400.0,0.00013894,2]
[360784225,1747018241885,-506.79149374,0.00013894,2]
[360784226,1747018241895,-516.95826804,0.00013894,2]
[360784227,1747018241904,-400.0,0.00013894,2]
[360784228,1747018241914,-400.0,0.00013894,2]
[360784229,1747018241923,-400.0,0.00013894,2]
[360784230,1747018241932,-400.0,0.00013894,2]
[360784231,1747018241941,-400.0,0.00013894,2]
[360784232,1747018241951,-400.0,0.00013894,2]
[360784233,1747018241960,-400.0,0.00013894,2]
[360784234,1747018241971,-400.0,0.00013894,2]
[360784235,1747018241981,-835.02,0.00013894,2]
[360784236,1747018241990,-835.02,0.00013894,2]
[360784237,1747018241999,-835.02,0.00013894,2]
[360784238,1747018242009,-835.02,0.00013894,2]
[360784239,1747018242018,-835.02,0.00013894,2]
[360784240,1747018242028,-2972.51,0.00013894,2]
[360784241,1747018242037,-400.0,0.00013894,2]
[360784242,1747018242050,-425.44,0.00013894,2]
[360784243,1747018242059,-425.44,0.00013894,2]
[360784244,1747018242068,-425.44,0.00013894,2]
[360784245,1747018242078,-425.44,0.00013894,2]
[360784246,1747018242087,-425.44,0.00013894,2]
[360784247,1747018242097,-1703.32,0.00013894,2]
[360784248,1747018242106,-1703.32,0.00013894,2]
[360784249,1747018242323,-1703.32,0.00013894,2]
[360784250,1747018242332,-1703.32,0.00013894,2]
[360784251,1747018242342,-1703.32,0.00013894,2]
[360784252,1747018242351,-490.21,0.00013894,2]
[360784253,1747018242360,-490.21,0.00013894,2]
[360784254,1747018242369,-490.21,0.00013894,2]
[360784255,1747018242378,-490.21,0.00013894,2]
[360784256,1747018242387,-490.21,0.00013894,2]
[360784257,1747018242397,-400.0,0.00013894,2]
[360784258,1747018242406,-400.0,0.00013894,2]
[360784259,1747018242416,-400.0,0.00013894,2]
[360784260,1747018242425,-400.0,0.00013894,2]
[360784261,1747018242434,-400.0,0.00013894,2]
[360784262,1747018242443,-400.0,0.00013894,2]
[360784263,1747018242452,-1424.39,0.00013894,2]
[360784264,1747018242462,-400.0,0.00013894,2]
[360784265,1747018242472,-400.0,0.00013894,2]
[360784266,1747018242482,-400.0,0.00013894,2]
[360784267,1747018242492,-400.0,0.00013894,2]
[360784268,1747018242504,-242.63014785,0.00013894,2]
[360784269,1747018242518,-400.0,0.00013894,2]
[360784270,1747018242529,-400.0,0.00013894,2]
[360784271,1747018242538,-400.0,0.00013894,2]
[360784272,1747018242548,-400.0,0.00013894,2]
[360784273,1747018242558,-400.0,0.00013894,2]
[360784274,1747018242569,-946.02,0.00013894,2]
[360784275,1747018242578,-400.0,0.00013894,2]
[360784276,1747018242587,-946.02,0.00013894,2]
[360784277,1747018242598,-946.02,0.00013894,2]
[360784278,1747018242607,-400.0,0.00013894,2]
[360784279,1747018242617,-946.02,0.00013894,2]
[360784280,1747018242627,-400.0,0.00013894,2]
[360784281,1747018242636,-946.02,0.00013894,2]
[360784282,1747018242645,-400.0,0.00013894,2]
[360784283,1747018242655,-542.74014177,0.00013894,2]
[360784284,1747018242664,-400.0,0.00013894,2]
[360784285,1747018242673,-400.0,0.00013894,2]
[360784286,1747018242683,-1091.07,0.00013894,2]
[360784287,1747018242693,-400.0,0.00013894,2]
[360784288,1747018242702,-1091.07,0.00013894,2]
[360784289,1747018242711,-400.0,0.00013894,2]
[360784290,1747018242722,-1091.07,0.00013894,2]
[360784291,1747018242732,-400.0,0.00013894,2]
[360784292,1747018242741,-1091.07,0.00013894,2]
[360784293,1747018242750,-291.8951894,0.00013894,2]
[360784294,1747018242760,-1091.07,0.00013894,2]
[360784295,1747018242769,-400.0,0.00013894,2]
[360784296,1747018242778,-209.4938916,0.00013894,2]
[360784299,1747018243645,-190.5061084,0.00013894,2]
[360784300,1747018243655,-400.0,0.00013894,2]
[360784301,1747018243665,-400.0,0.00013894,2]
[360784302,1747018243675,-400.0,0.00013894,2]
[360784303,1747018243686,-400.0,0.00013894,2]
[360784304,1747018243696,-400.0,0.00013894,2]
[360784305,1747018243706,-400.0,0.00013894,2]
[360784306,1747018243716,-2010.6438916,0.00013894,2]
[360784307,1747018243734,-747.0661084,0.00013894,2]
[360784308,1747018243744,-401.96488666,0.00013894,2]
[360784309,1747018243753,-2757.71,0.00013894,2]
[360784310,1747018243763,-2757.71,0.00013894,2]
[360784311,1747018243772,-2757.71,0.00013894,2]
[360784312,1747018243781,-2757.71,0.00013894,2]
[360784313,1747018243791,-400.0,0.00013894,2]
[360784314,1747018243804,-718.73,0.00013894,2]
[360784315,1747018243813,-718.73,0.00013894,2]
[360784316,1747018243823,-718.73,0.00013894,2]
[360784317,1747018243832,-400.0,0.00013894,2]
[360784318,1747018243841,-718.73,0.00013894,2]
[360784319,1747018243851,-400.0,0.00013894,2]
[360784320,1747018243860,-718.73,0.00013894,2]
[360784321,1747018243870,-400.0,0.00013894,2]
[360784322,1747018243878,-400.0,0.00013894,2]
[360784323,1747018243888,-400.0,0.00013894,2]
[360784324,1747018243897,-400.0,0.00013894,2]
[360784325,1747018243906,-400.0,0.00013894,2]
[360784326,1747018243916,-400.0,0.00013894,2]
[360784327,1747018243925,-400.0,0.00013894,2]
[360784328,1747018243935,-434.88409506,0.00013894,2]
[360784329,1747018245229,-64.2679415,0.00013894,2]
[360784330,1747018245240,-400.0,0.00013894,2]
[360784331,1747018245249,-98.3344542,0.00013894,2]
[360784332,1747018245291,-301.6655458,0.00013894,2]
[360784333,1747018245314,-250.0,0.00013894,2]
[360784334,1747018245335,-400.0,0.00013894,2]
[360784335,1747018245351,-400.0,0.00013894,2]
[360784336,1747018245368,-381.3518988,0.00013894,2]
[360784337,1747018245386,-156.022518,0.00013894,2]
[360784338,1747018245405,-400.0,0.00013894,2]
[360784339,1747018245423,-497.07,0.00013894,2]
[360784340,1747018245441,-400.0,0.00013894,2]
[360784341,1747018245459,-497.07,0.00013894,2]
[360784342,1747018245478,-329.35505234,0.00013894,2]
[360784343,1747018245492,-497.07,0.00013894,2]
[360784344,1747018245512,-497.07,0.00013894,2]
[360784345,1747018245528,-497.07,0.00013894,2]
[360784346,1747018245547,-9.60157457,0.00013894,2]
[360784348,1747018245661,-390.39842543,0.00013894,2]
[360784350,1747018245677,-400.0,0.00013894,2]
[360784351,1747018245693,-151.91787057,0.00013894,2]
[360784352,1747018247598,-248.08212943,0.00013894,2]
[360784353,1747018247608,-400.0,0.00013894,2]
[360784354,1747018247618,-400.0,0.00013894,2]
[360784355,1747018247628,-649.96,0.00013894,2]
[360784356,1747018247639,-649.96,0.00013894,2]
[360784357,1747018247650,-649.96,0.00013894,2]
[360784358,1747018247660,-400.0,0.00013894,2]
[360784359,1747018247669,-649.96,0.00013894,2]
[360784360,1747018247679,-509.82882795,0.00013894,2]
[360784361,1747018247689,-649.96,0.00013894,2]
[360784362,1747018247699,-2162.173485,0.00013894,2]
[360784363,1747018247708,-2162.173485,0.00013894,2]
[360784364,1747018247717,-2162.173485,0.00013894,2]
[360784365,1747018247727,-1639.32788196,0.00013894,2]
[360784366,1747018247787,-2767.20211804,0.00013894,2]
[360784367,1747018247797,-2162.173485,0.00013894,2]
[360784368,1747018247808,-1151.71,0.00013894,2]
[360784369,1747018247817,-1151.71,0.00013894,2]
[360784370,1747018247827,-2162.173485,0.00013894,2]
[360784371,1747018247837,-393.66477102,0.00013894,2]
[360784372,1747018247846,-269.70232575,0.00013894,2]
[360784373,1747018247856,-1151.71,0.00013894,2]
[360784374,1747018247865,-1151.71,0.00013894,2]
[360784375,1747018247875,-1151.71,0.00013894,2]
[360784376,1747018247884,-400.0,0.00013894,2]
[360784377,1747018247893,-400.0,0.00013894,2]
[360784378,1747018247902,-400.0,0.00013894,2]
[360784379,1747018247913,-400.0,0.00013894,2]
[360784380,1747018247922,-400.0,0.00013894,2]
[360784381,1747018247933,-372.34074016,0.00013894,2]
[360784382,1747018247943,-829.21,0.00013894,2]
[360784383,1747018247953,-829.21,0.00013894,2]
[360784384,1747018247963,-399.30958804,0.00013894,2]
[360784385,1747018247973,-829.21,0.00013894,2]
[360784386,1747018247983,-829.21,0.00013894,2]
[360784387,1747018247993,-829.21,0.00013894,2]
[360784388,1747018248003,-400.0,0.00013894,2]
[360784389,1747018248013,-400.0,0.00013894,2]
[360784390,1747018248023,-400.0,0.00013894,2]
[360784391,1747018248034,-400.0,0.00013894,2]
[360784392,1747018248043,-400.0,0.00013894,2]
[360784393,1747018248055,-400.0,0.00013894,2]
[360784394,1747018248064,-400.0,0.00013894,2]
[360784395,1747018248074,-400.0,0.00013894,2]
[360784396,1747018248084,-400.0,0.00013894,2]
[360784397,1747018248094,-400.0,0.00013894,2]
[360784398,1747018248103,-1246.55,0.00013894,2]
[360784399,1747018248113,-1246.55,0.00013894,2]
[360784400,1747018248123,-1246.55,0.00013894,2]
[360784401,1747018248134,-1246.55,0.00013894,2]
[360784402,1747018248143,-1246.55,0.00013894,2]
[360784403,1747018248153,-662.77876712,0.00013895,2]
[360784404,1747018248163,-45462.06494805,0.00013895,2]
[360784405,1747018272401,305.11,0.0002,30]
[360784406,1747018334048,169.51,0.00010351,2]
[360784407,1747018341981,-169.31343352,0.00012838,2]
[360784408,1747018342244,-169.31343352,0.00012838,2]
[360784409,1747018355924,-161.37313297,0.00012837,2]
[360784410,1747018370962,-166.05,0.00012837,2]
[360784411,1747018386185,-310.46,0.00012837,2]
[360784413,1747018401795,-23.49,0.00012837,2]
[360784414,1747018401823,-139.55799938,0.00012837,2]
[360784415,1747018415672,-216.49811875,0.00012837,2]
[360784417,1747018431439,-143.94388187,0.00012837,2]
[360784418,1747018431469,-172.83611813,0.00012837,2]
[360784419,1747018445689,-311.81979359,0.00012837,2]
[360784420,1747018460793,-15.34408828,0.00012837,2]
[360784421,1747018460820,-217.80640336,0.00012837,2]
[360784423,1747018475699,-213.61637939,0.00012837,2]
[360784425,1747018560674,-286.38362061,0.00012924,2]
[360784426,1747018565588,-179.32101991,0.00012924,2]
[360784427,1747018580709,-152.87535948,0.00012924,2]
[360784428,1747018595752,-314.08715312,0.00012924,2]
[360784429,1747018611799,-67.33284688,0.00012924,2]
[360784432,1747018842613,202.0,0.00028,120]
[360784433,1747018886635,1077.9,0.00010987,2]
[360784435,1747018888184,-267.00582207,0.00013251,2]
[360784436,1747018896921,-219.07868155,0.00012905,2]
[360784437,1747018910682,-236.16323667,0.00012888,2]
[360784438,1747018911225,-236.16323667,0.00012888,2]
[360784439,1747018925744,-297.12464052,0.00012888,2]
[360784440,1747018940661,-300.0,0.00012888,2]
[360784441,1747018955730,-1.47888614,0.00012888,2]
[360784442,1747018955761,-498.52111386,0.00012904,2]
[360784443,1747018971081,-1.47888614,0.00012904,2]
[360784444,1747018971113,-227.9369462,0.00012904,2]
[360784445,1747018985718,-270.58416766,0.00012903,2]
[360784446,1747019000924,-29.41583234,0.00012903,2]
[360784447,1747019000956,-272.0630538,0.00012904,2]
[360784448,1747019000985,-3.58460545,0.00012904,2]
[360784449,1747019015721,-233.29908279,0.00012904,2]
[360784450,1747019030674,-208.25333276,0.00012904,2]
[360784452,1747019046823,-300.0,0.00012903,2]
[360784453,1747019046848,-8.44758445,0.00012904,2]
[360784454,1747019047181,-156.44758445,0.00012904,2]
[360784455,1747019060661,-85.1048311,0.00012904,2]
[360784456,1747019060690,-54.862979,0.00012904,2]
[360784457,1747019060719,-158.08442368,0.00012904,2]
[360784458,1747019077479,-258.80557484,0.00012903,2]
[360784459,1747019090869,-241.19442516,0.00012903,2]
[360784460,1747019090902,-17.61114968,0.00012903,2]
[360784461,1747019105764,-250.0,0.00012903,2]
[360784463,1747019120698,-250.0,0.00012851,2]
[360784464,1747019136258,-184.33661654,0.00012903,2]
[360784465,1747019150754,-48.05223378,0.00012903,2]
[360784466,1747019150788,-209.36643416,0.00012903,2]
[360784468,1747019166142,-214.13273447,0.00012903,2]
[360784469,1747019180682,-76.50083137,0.00012903,2]
[360784470,1747019180713,-143.69443346,0.00012903,2]
[360784471,1747019196873,-300.0,0.00012903,2]
[360784472,1747019210693,-133.72394281,0.00012903,2]
[360784473,1747019210716,-293.05042228,0.00012904,2]
[360784486,1747019432373,-634.72,0.00012824,2]
[360784487,1747019432383,-250.0,0.00012864,2]
[360784488,1747019432394,-3610.25131845,0.00012905,2]
[360784489,1747019432406,-169.31343352,0.00012923,2]
[360784490,1747019432416,-168.13,0.00013188,2]
[360784491,1747019432427,-233.63118094,0.00013251,2]
[360784492,1747019432452,-556.17,0.00013251,2]
[360784493,1747019432476,-21.09299699,0.00013251,2]
[360784494,1747019432487,-207.4,0.00013332,2]
[360784495,1747019432497,-49.34873911,0.00013673,2]
[360784522,1747019437959,-119.96469441,0.00013673,2]
[360784523,1747019437970,-176.89762222,0.00013695,2]
[360784524,1747019437981,-203.93720567,0.00013698,2]
[360784525,1747019438014,-863.40163538,0.00013698,2]
[360784526,1747019438225,-132.66115895,0.00013698,2]
[360784527,1747019438235,-444.39,0.00013699,2]
[360784528,1747019438244,-500.0,0.00013699,2]
[360784529,1747019438253,-76.40847922,0.00013699,2]
[360784534,1747019440466,-279.5854385,0.00013693,2]
[360784535,1747019440477,-375.51786267,0.00013699,2]
[360784536,1747019440486,-168.13,0.00013732,2]
[360784537,1747019440495,-300.0,0.00013771,2]
[360784538,1747019440505,-400.0,0.00013772,2]
[360784539,1747019440514,-199.02144686,0.00013772,2]
[360784540,1747019440523,-150.0,0.00013772,2]
[360784541,1747019440534,-2980.57,0.00013772,2]
[360784542,1747019440543,-400.0,0.00013772,2]
[360784543,1747019440553,-400.0,0.00013772,2]
[360784544,1747019440562,-95.62485326,0.00013772,2]
[360784545,1747019441034,-11.41472409,0.00013772,2]
[360784546,1747019441071,-292.96042265,0.00013772,2]
[360784547,1747019441085,-400.0,0.00013772,2]
[360784548,1747019441094,-226.43775787,0.00013772,2]
[360784549,1747019441113,-173.56224213,0.00013772,2]
[360784550,1747019441122,-400.0,0.00013772,2]
[360784551,1747019441131,-191.18370287,0.00013772,2]
[360784552,1747019441353,-208.81629713,0.00013772,2]
[360784553,1747019441363,-400.0,0.00013772,2]
[360784554,1747019441372,-304.94748933,0.00013772,2]
[360784570,1747019443148,-95.05251067,0.00013772,2]
[360784571,1747019443157,-348.94105858,0.00013772,2]
[360784572,1747019443305,-51.05894142,0.00013772,2]
[360784573,1747019443315,-400.0,0.00013772,2]
[360784574,1747019443324,-387.55143762,0.00013772,2]
[360784575,1747019443333,-400.0,0.00013772,2]
[360784576,1747019443342,-400.0,0.00013772,2]
[360784577,1747019443352,-400.0,0.00013772,2]
[360784578,1747019443361,-568.99,0.00013772,2]
[360784579,1747019443370,-400.0,0.00013772,2]
[360784580,1747019443379,-400.0,0.00013772,2]
[360784581,1747019443389,-400.0,0.00013772,2]
[360784582,1747019443398,-400.0,0.00013772,2]
[360784583,1747019443407,-514.55,0.00013772,2]
[360784584,1747019443416,-400.0,0.00013772,2]
[360784585,1747019443426,-400.0,0.00013772,2]
[360784586,1747019443435,-400.0,0.00013772,2]
[360784587,1747019443444,-400.0,0.00013772,2]
[360784588,1747019443453,-400.0,0.00013772,2]
[360784589,1747019443463,-400.0,0.00013772,2]
[360784590,1747019443472,-40743.5072236,0.00013772,2]
[360784591,1747019443483,-3123.45512727,0.00013772,2]
[360784592,1747019445962,-400.0,0.00013772,2]
[360784593,1747019445972,-288.08525818,0.00013772,2]
[360784594,1747019445983,-1873.14887,0.00013772,2]
[360784595,1747019445995,-933.42099424,0.00013772,2]
[360784596,1747019446068,-5410.27679043,0.00013772,2]
[360784597,1747019446081,-7917.64319396,0.00013772,2]
[360784598,1747019446092,-6561.53498233,0.00013772,2]
[360784599,1747019446103,-270.14016659,0.00013772,2]
[360784600,1747019446114,-1116.14335463,0.00013772,2]
[360784601,1747019446180,-2397.10568078,0.00013772,2]
[360784602,1747019446192,-47352.93125225,0.00013772,2]
[360784603,1747019446203,-102703.07176755,0.00013772,2]
[360784604,1747019446215,-619.76020313,0.00013772,2]
[360784605,1747019446278,-897.40698998,0.00013772,2]
[360784607,1747019453024,169.51,0.00010329,2]